bitfinex-derivatives/quotes_BTCF0:USTF0_20250806
["timestamp","ask_amount","ask_price","bid_price","bid_amount"]
[1754491787442,0.2686056,114290.0,114280.0,0.5566383]
[1754491787632,0.3782356,114290.0,114280.0,0.5566383]
[1754491787934,0.5306856,114290.0,114280.0,0.5566383]
[1754491788233,0.13196,114290.0,114280.0,0.5566383]
[1754491788434,0.002,114290.0,114280.0,0.8654608]
[1754491788729,0.04985,114310.0,114300.0,0.5566077]
[1754491788932,0.6008659,114320.0,114310.0,0.1749624]
[1754491789140,0.6507159,114320.0,114310.0,0.5565924]
[1754491789533,0.3832571,114320.0,114310.0,0.56532229]
[1754491789834,0.6506936,114330.0,114320.0,0.2860371]
[1754491790144,0.4918848,114330.0,114320.0,1.1671771]
[1754491790731,0.5632248,114330.0,114320.0,1.1671771]
[1754491791034,0.563227,114320.0,114310.0,0.56397729]
[1754491791338,0.8720495,114320.0,114310.0,1.17613729]
[1754491793041,0.8720495,114320.0,114310.0,1.13149219]
[1754491793340,0.8720495,114320.0,114310.0,1.17656219]
[1754491794134,0.8730495,114320.0,114310.0,1.17656219]
[1754491794438,0.564227,114320.0,114310.0,1.17656219]
[1754491795635,0.304907,114320.0,114310.0,1.17656219]
[1754491795841,0.258087,114320.0,114310.0,1.17656219]
[1754491796045,0.563227,114320.0,114310.0,1.17656219]
[1754491796545,0.563227,114320.0,114310.0,1.17756219]
[1754491797049,0.563227,114320.0,114310.0,1.17656219]
[1754491797343,0.8720495,114320.0,114310.0,1.17656219]
[1754491797537,0.564227,114320.0,114310.0,1.17656219]
[1754491798547,0.8730495,114320.0,114310.0,1.17656219]
[1754491798845,0.8730495,114320.0,114310.0,1.13149219]
[1754491799141,0.8720495,114320.0,114310.0,1.13149219]
[1754491800646,0.8730495,114320.0,114310.0,1.13149219]
[1754491801147,0.8730495,114320.0,114310.0,1.06357219]
[1754491801341,0.8730495,114320.0,114310.0,0.90438219]
[1754491801551,0.564227,114320.0,114310.0,1.17072219]
[1754491802549,0.3842569,114320.0,114310.0,1.17072219]
[1754491802941,0.5626569,114320.0,114310.0,1.17072219]
[1754491803248,0.8714794,114320.0,114310.0,1.17072219]
[1754491803945,0.8714794,114320.0,114310.0,1.12472219]
[1754491804350,0.8714794,114320.0,114310.0,0.15181]
[1754491804543,0.3273223,114310.0,114300.0,0.6405827]
[1754491804744,0.5545423,114310.0,114300.0,1.2511427]
[1754491804952,0.5545423,114310.0,114300.0,1.2051427]
[1754491805249,0.5545423,114310.0,114300.0,1.2511427]
[1754491806051,0.5545423,114310.0,114300.0,1.2599922]
[1754491806453,0.8633648,114310.0,114300.0,1.128384]
[1754491807052,0.8633648,114310.0,114300.0,0.1769776]
[1754491807252,0.8633648,114310.0,114300.0,0.7875776]
[1754491807556,0.8633648,114310.0,114300.0,0.79292]
[1754491807749,0.8633648,114310.0,114300.0,0.8993676]
[1754491807950,0.8633648,114310.0,114300.0,0.72439]
[1754491808447,0.8633648,114310.0,114300.0,0.8993676]
[1754491808845,0.8633648,114310.0,114300.0,1.1197076]
[1754491809048,0.8643648,114310.0,114300.0,0.56399291]
[1754491809353,0.8643648,114310.0,114300.0,1.17263291]
[1754491809652,0.3771423,114310.0,114300.0,1.17263291]
[1754491809847,0.4849623,114310.0,114300.0,1.1637476]
[1754491810052,0.5555423,114310.0,114300.0,1.1637476]
[1754491811154,0.8643648,114310.0,114300.0,1.1637476]
[1754491811556,0.8643648,114310.0,114300.0,0.15181]
[1754491811859,0.5545576,114300.0,114290.0,1.50756362]
[1754491812054,0.8633801,114300.0,114290.0,1.50756362]
[1754491812355,0.8633801,114300.0,114290.0,1.30359783]
[1754491812752,0.5545576,114300.0,114290.0,1.30359783]
[1754491813152,0.1749929,114290.0,114280.0,0.51021399]
[1754491813354,0.8633954,114290.0,114280.0,1.40903249]
[1754491813554,0.3525693,114300.0,114290.0,0.1749929]
[1754491813752,0.9508865,114300.0,114290.0,1.1636029]
[1754491813948,0.642064,114300.0,114290.0,1.1636029]
[1754491814153,0.642064,114300.0,114290.0,1.1656029]
[1754491814351,0.9508865,114300.0,114290.0,1.12817323]
[1754491814547,0.9508865,114300.0,114290.0,1.17417323]
[1754491814748,0.9508865,114300.0,114290.0,1.1656029]
[1754491815654,0.8633924,114300.0,114290.0,1.1656029]
[1754491815859,0.5545577,114300.0,114290.0,1.1656029]
[1754491816748,0.8633802,114300.0,114290.0,1.1656029]
[1754491817950,0.3378623,114310.0,114300.0,0.1749777]
[1754491818156,0.5982923,114310.0,114300.0,0.5531077]
[1754491818859,0.9071148,114310.0,114300.0,0.5531077]
[1754491819160,0.9081148,114310.0,114300.0,0.5531077]
[1754491820154,0.9081148,114310.0,114300.0,0.5071077]
[1754491820961,0.9081148,114310.0,114300.0,0.5531077]
[1754491821162,0.20218,114310.0,114300.0,0.5531077]
[1754491821364,0.3771424,114310.0,114300.0,0.5531077]
[1754491821759,0.4849624,114310.0,114300.0,0.5531077]
[1754491822165,0.5555424,114310.0,114300.0,0.5531077]
[1754491822359,0.38058,114310.0,114300.0,0.5531077]
[1754491822660,0.20218,114310.0,114300.0,0.5531077]
[1754491822866,0.8643648,114310.0,114300.0,0.5531077]
[1754491824165,0.8643648,114310.0,114300.0,0.4385777]
[1754491824366,0.8643648,114310.0,114300.0,0.1749777]
[1754491824661,0.1749777,114300.0,114290.0,0.18032]
[1754491824870,0.554573,114290.0,114280.0,1.30953825]
[1754491825162,0.8633955,114290.0,114280.0,1.30953825]
[1754491825364,0.8633955,114290.0,114280.0,1.31178695]
[1754491826065,0.8633955,114290.0,114280.0,1.31478695]
[1754491826462,0.8633955,114290.0,114280.0,1.26878695]
[1754491826662,0.8633955,114290.0,114280.0,1.18128505]
[1754491826866,0.8633955,114290.0,114280.0,0.9688083]
[1754491827566,1.4739155,114290.0,114280.0,0.004]
[1754491828259,1.855525,114290.0,114250.0,0.2508967]
[1754491828460,0.5546343,114250.0,114240.0,0.20396579]
[1754491828659,1.7827993,114250.0,114240.0,0.20396579]
[1754491828866,0.5546496,114240.0,114230.0,0.18032]
[1754491829078,1.1722946,114240.0,114230.0,0.2868749]
[1754491829270,0.8634721,114240.0,114230.0,0.5072149]
[1754491830369,0.8634721,114240.0,114230.0,1.1178149]
[1754491830566,0.8624721,114240.0,114230.0,0.33213]
[1754491830764,0.91596024,114240.0,114230.0,0.11179]
[1754491830959,0.5536496,114240.0,114230.0,0.11179]
[1754491831158,0.91596024,114240.0,114230.0,0.2868749]
[1754491831371,0.91596024,114240.0,114230.0,0.3575949]
[1754491831671,0.91596024,114240.0,114230.0,0.5132849]
[1754491831862,0.91696024,114240.0,114230.0,0.5132849]
[1754491833275,0.91696024,114240.0,114230.0,0.3349349]
[1754491833570,0.91696024,114240.0,114230.0,0.2868749]
[1754491833757,0.5546496,114240.0,114230.0,0.2868749]
[1754491833957,0.91696024,114240.0,114230.0,0.11179]
[1754491834157,0.91696024,114240.0,114230.0,0.3382]
[1754491835668,0.5546496,114240.0,114230.0,0.5592849]
[1754491835868,0.4865596,114240.0,114230.0,0.5592849]
[1754491836063,0.5603296,114240.0,114230.0,0.3842]
[1754491836265,0.5603296,114240.0,114230.0,0.3382]
[1754491836566,0.92264024,114240.0,114230.0,0.3382]
[1754491836760,0.5603296,114240.0,114230.0,0.3382]
[1754491836961,0.92264024,114240.0,114230.0,0.3382]
[1754491837971,0.5603296,114240.0,114230.0,0.3382]
[1754491838271,0.92264024,114240.0,114230.0,0.3382]
[1754491838566,0.5603296,114240.0,114230.0,0.3382]
[1754491838967,0.5603296,114240.0,114230.0,0.5132849]
[1754491839565,0.5603296,114240.0,114230.0,0.3382]
[1754491840071,0.5603296,114240.0,114230.0,0.1750849]
[1754491840271,0.5603449,114230.0,114220.0,1.31356969]
[1754491841268,0.5603449,114230.0,114220.0,1.26979529]
[1754491841463,0.5603449,114230.0,114220.0,1.27079529]
[1754491841661,0.5603449,114230.0,114220.0,0.66219529]
[1754491844771,0.5603449,114230.0,114220.0,0.61619529]
[1754491844973,0.5603449,114230.0,114220.0,0.66219529]
[1754491845162,0.5603449,114230.0,114220.0,0.61619529]
[1754491845569,0.5603449,114230.0,114220.0,0.66219529]
[1754491846267,0.38526,114230.0,114220.0,0.66219529]
[1754491846668,0.04887,114230.0,114220.0,0.66219529]
[1754491847068,0.31094,114240.0,114230.0,0.5629648]
[1754491847261,0.44983284,114260.0,114230.0,0.99864]
[1754491847463,0.3737816,114260.0,114250.0,0.5169342]
[1754491847765,0.3737816,114260.0,114250.0,0.5629342]
[1754491848072,0.96638224,114260.0,114250.0,0.5169342]
[1754491849074,0.96838224,114260.0,114250.0,0.5169342]
[1754491851176,0.6060716,114260.0,114250.0,0.5169342]
[1754491852175,0.96838224,114260.0,114250.0,0.5169342]
[1754491852981,0.1750542,114250.0,114240.0,0.9171115]
[1754491853177,0.92262484,114250.0,114240.0,0.1750565]
[1754491853776,0.5603142,114250.0,114240.0,0.5169365]
[1754491853970,0.5603142,114250.0,114240.0,0.5629365]
[1754491854274,0.5603142,114250.0,114240.0,0.5169365]
[1754491854474,0.5603142,114250.0,114240.0,0.5169495]
[1754491854974,0.5623142,114250.0,114240.0,0.5169495]
[1754491855274,0.92562484,114250.0,114240.0,0.5169495]
[1754491855474,1.53638484,114250.0,114240.0,0.5169495]
[1754491855975,0.1750694,114240.0,114230.0,0.1750778]
[1754491856182,0.92264004,114240.0,114230.0,0.2905478]
[1754491856478,0.92264004,114240.0,114230.0,0.3612678]
[1754491856864,0.92264004,114240.0,114230.0,0.18619]
[1754491857078,0.5603448,114230.0,114220.0,1.22395519]
[1754491857578,0.5603448,114230.0,114220.0,1.26995519]
[1754491857969,0.5603448,114230.0,114220.0,1.22618019]
[1754491858174,0.5603448,114230.0,114220.0,1.18018019]
[1754491858776,0.86949598,114230.0,114220.0,1.18018019]
[1754491859872,0.86949598,114230.0,114220.0,0.96131939]
[1754491860381,0.86949598,114230.0,114220.0,1.1297401]
[1754491861476,0.86949598,114230.0,114220.0,0.88392]
[1754491861673,0.86949598,114230.0,114220.0,1.12305965]
[1754491862383,0.86949598,114230.0,114220.0,1.1143001]
[1754491863281,0.86949598,114230.0,114220.0,0.32844]
[1754491863484,0.86949598,114230.0,114220.0,0.25871]
[1754491864083,0.86949598,114230.0,114220.0,0.002]
[1754491864776,0.86949598,114230.0,114220.0,0.10758]
[1754491865077,0.86949598,114230.0,114220.0,0.002]
[1754491866183,0.86949598,114230.0,114220.0,0.1771001]
[1754491867281,0.86949598,114230.0,114220.0,0.002]
[1754491867476,0.86949598,114230.0,114220.0,0.1771001]
[1754491867682,0.86949598,114230.0,114220.0,0.3524101]
[1754491867879,0.86949598,114230.0,114220.0,0.5035401]
[1754491868078,0.5574348,114230.0,114220.0,0.5495401]
[1754491868274,0.86658598,114230.0,114220.0,0.5035401]
[1754491868885,0.86658598,114230.0,114220.0,0.002]
[1754491869284,0.86658598,114230.0,114220.0,0.1771001]
[1754491869586,0.86658598,114230.0,114220.0,0.002]
[1754491870175,0.5574707,114200.0,114190.0,0.4171041]
[1754491870378,0.86662188,114200.0,114190.0,0.5891441]
[1754491870879,0.86662188,114200.0,114190.0,0.6371441]
[1754491871075,0.5574707,114200.0,114190.0,0.64569371]
[1754491871381,0.5574707,114200.0,114190.0,1.26245371]
[1754491871982,0.5574707,114200.0,114190.0,1.26145371]
[1754491873985,0.04958,114200.0,114190.0,1.26145371]
[1754491874189,0.95418038,114210.0,114200.0,0.5015707]
[1754491874584,0.68810688,114210.0,114200.0,0.5015707]
[1754491874787,0.86661688,114210.0,114200.0,0.37444]
[1754491874987,0.86661688,114210.0,114200.0,0.32644]
[1754491875189,0.86661688,114210.0,114200.0,0.5015708]
[1754491875490,0.86661688,114210.0,114200.0,0.5025708]
[1754491876391,0.86661688,114210.0,114200.0,0.001]
[1754491878280,0.86661688,114210.0,114200.0,0.002]
[1754491880790,0.5574657,114210.0,114200.0,0.1771307]
[1754491880991,0.86661688,114210.0,114200.0,0.002]
[1754491882492,0.86661688,114210.0,114200.0,0.1771307]
[1754491882994,0.86661688,114210.0,114200.0,0.1771308]
[1754491883985,0.86661688,114210.0,114200.0,0.4338408]
[1754491884292,0.86661688,114210.0,114200.0,0.5035708]
[1754491884493,1.47749688,114210.0,114200.0,0.5035708]
[1754491884888,1.47749688,114210.0,114200.0,0.002]
[1754491885089,1.47749688,114210.0,114200.0,0.1771302]
[1754491886995,1.47749688,114210.0,114200.0,0.3524402]
[1754491887194,1.47749688,114210.0,114200.0,0.5035702]
[1754491887496,1.47749688,114210.0,114200.0,0.4338402]
[1754491887788,0.86661688,114210.0,114200.0,0.5035702]
[1754491887989,0.3789557,114210.0,114200.0,0.5515702]
[1754491888189,1.16680058,114220.0,114210.0,0.2546249]
[1754491888190,0.2188859,114220.0,114210.0,0.2546249]
[1754491888395,0.2684659,114220.0,114210.0,0.5495549]
[1754491888590,0.4469759,114220.0,114210.0,0.5495549]
[1754491888797,0.91037708,114220.0,114210.0,0.5495549]
[1754491889188,0.3789408,114220.0,114210.0,0.5495549]
[1754491889389,1.05135398,114230.0,114210.0,0.5495549]
[1754491889390,0.95413338,114230.0,114220.0,0.5495396]
[1754491890692,0.1760842,114230.0,114220.0,0.5495396]
[1754491891300,0.5587442,114230.0,114220.0,0.5495396]
[1754491891600,0.001,114230.0,114220.0,0.85869078]
[1754491891791,0.1760843,114230.0,114220.0,0.5495396]
[1754491891987,0.2245043,114230.0,114220.0,0.5495396]
[1754491892189,0.30962,114250.0,114240.0,0.504959]
[1754491892391,0.3767036,114250.0,114240.0,1.17248127]
[1754491892596,0.2234736,114250.0,114240.0,1.17248127]
[1754491893100,0.64059478,114250.0,114240.0,1.17248127]
[1754491893295,0.91061578,114260.0,114250.0,0.5529436]
[1754491894399,0.91261578,114260.0,114250.0,0.37789]
[1754491894695,0.91261578,114260.0,114250.0,0.32989]
[1754491894999,0.5577136,114250.0,114240.0,1.17248117]
[1754491895199,0.86686478,114250.0,114240.0,1.17248117]
[1754491895792,0.38266,114250.0,114240.0,0.56164117]
[1754491895997,0.38266,114250.0,114240.0,1.17244117]
[1754491896300,0.5587136,114250.0,114240.0,1.17244117]
[1754491896701,0.5607136,114250.0,114240.0,0.56164117]
[1754491896896,0.86986478,114250.0,114240.0,1.04941117]
[1754491897203,0.86986478,114250.0,114240.0,0.43869117]
[1754491897403,0.86986478,114250.0,114240.0,1.12436117]
[1754491897799,0.86986478,114250.0,114240.0,1.17236117]
[1754491898300,0.86986478,114250.0,114240.0,1.12436117]
[1754491898809,0.86986478,114250.0,114240.0,0.33857227]
[1754491899198,0.86986478,114250.0,114240.0,0.51364117]
[1754491901004,0.86986478,114250.0,114240.0,0.19450227]
[1754491901307,0.86986478,114250.0,114240.0,0.10896]
[1754491901512,0.86986478,114250.0,114240.0,0.2840289]
[1754491901812,0.86986478,114250.0,114240.0,0.3589789]
[1754491902413,0.86986478,114250.0,114240.0,0.4358389]
[1754491902713,0.86986478,114250.0,114240.0,0.5049589]
[1754491903213,0.86986478,114250.0,114240.0,0.2840289]
[1754491903811,0.86986478,114250.0,114240.0,0.10896]
[1754491904005,0.1750689,114240.0,114230.0,1.040008]
[1754491904205,0.86688008,114240.0,114230.0,1.15791219]
[1754491904805,0.86688008,114240.0,114230.0,1.10991219]
[1754491905614,0.86688008,114240.0,114230.0,1.15791219]
[1754491906313,0.69181118,114240.0,114230.0,1.15791219]
[1754491906507,0.5577289,114240.0,114230.0,1.15791219]
[1754491911311,0.5577289,114240.0,114230.0,0.64944219]
[1754491911514,0.86688008,114240.0,114230.0,1.26000219]
[1754491911810,0.69181118,114240.0,114220.0,0.2276848]
[1754491912015,0.86689538,114230.0,114220.0,0.5487582]
[1754491912213,0.86689538,114230.0,114220.0,1.1592782]
[1754491912413,0.86689538,114230.0,114220.0,0.94041]
[1754491912611,0.86689538,114230.0,114220.0,0.61052]
[1754491912811,0.86689538,114230.0,114220.0,0.7856195]
[1754491913011,0.86689538,114230.0,114220.0,0.8945795]
[1754491913320,0.86689538,114230.0,114220.0,0.7866195]
[1754491913509,0.86689538,114230.0,114220.0,0.9705295]
[1754491913709,0.86689538,114230.0,114220.0,1.1165095]
[1754491913911,0.86689538,114230.0,114220.0,1.1645095]
[1754491914420,0.87674418,114240.0,114230.0,0.3210642]
[1754491914620,0.99820418,114240.0,114230.0,0.5498842]
[1754491915319,0.99820418,114240.0,114230.0,0.5018842]
[1754491915709,0.99820418,114240.0,114230.0,0.3268]
[1754491916118,1.00020418,114240.0,114230.0,0.18273]
[1754491916417,1.00020418,114240.0,114230.0,0.3578142]
[1754491916719,1.00120418,114240.0,114230.0,0.1750842]
[1754491917018,0.5577442,114230.0,114220.0,1.10628073]
[1754491917219,0.86689538,114230.0,114220.0,0.8731942]
[1754491917615,0.86689538,114230.0,114220.0,0.8294205]
[1754491918018,0.86689538,114230.0,114220.0,0.61056]
[1754491918215,0.86689538,114230.0,114220.0,0.7856595]
[1754491918413,0.86689538,114230.0,114220.0,0.1750995]
[1754491918613,0.5577595,114220.0,114210.0,1.1562001]
[1754491918815,0.86691068,114220.0,114210.0,0.2957401]
[1754491919020,0.5577748,114210.0,114200.0,1.6539789]
[1754491919219,0.86692598,114210.0,114200.0,2.2644989]
[1754491919620,0.86692598,114210.0,114200.0,2.3124989]
[1754491919925,0.38266,114210.0,114200.0,2.32106157]
[1754491920126,0.04842,114210.0,114200.0,1.71054157]
[1754491920323,0.48426328,114220.0,114210.0,0.4949648]
[1754491920526,0.2220995,114220.0,114210.0,1.1516248]
[1754491920724,0.14921,114220.0,114210.0,1.1516248]
[1754491921025,0.5421195,114220.0,114210.0,1.1516248]
[1754491921227,0.5421195,114220.0,114210.0,1.1526248]
[1754491921726,0.85127068,114220.0,114210.0,1.0360248]
[1754491922320,0.85127068,114220.0,114210.0,1.1064848]
[1754491923432,0.85127068,114220.0,114210.0,1.1526248]
[1754491924530,0.70577068,114220.0,114210.0,1.1526248]
[1754491924829,0.53125068,114220.0,114210.0,1.1526248]
[1754491925030,0.85127068,114220.0,114210.0,1.1526248]
[1754491925531,0.85127068,114220.0,114210.0,1.1064848]
[1754491926030,0.85127068,114220.0,114210.0,1.1526248]
[1754491926422,0.85127068,114220.0,114210.0,1.1536248]
[1754491927432,0.85127068,114220.0,114210.0,1.1074848]
[1754491927826,0.85127068,114220.0,114210.0,1.1536248]
[1754491928130,0.2220995,114220.0,114210.0,1.1536248]
[1754491928427,0.93881728,114230.0,114220.0,0.5410896]
[1754491928732,0.89504288,114230.0,114220.0,0.5410896]
[1754491929033,0.89504288,114230.0,114220.0,0.4949496]
[1754491930527,0.89504288,114230.0,114220.0,0.5410896]
[1754491931632,0.3007542,114230.0,114220.0,0.5410896]
[1754491931828,0.32002,114240.0,114230.0,0.4489741]
[1754491932035,0.85123998,114240.0,114230.0,1.1515941]
[1754491932330,0.77892998,114240.0,114230.0,1.1515941]
[1754491932735,0.85123998,114240.0,114230.0,1.1515941]
[1754491932929,0.85323998,114240.0,114230.0,1.1515941]
[1754491933625,0.85323998,114240.0,114230.0,0.1750841]
[1754491934136,0.85323998,114240.0,114230.0,0.2760541]
[1754491934525,0.85323998,114240.0,114230.0,0.3465141]
[1754491934832,0.5421042,114230.0,114220.0,1.2367336]
[1754491935033,0.85125538,114230.0,114220.0,1.2367336]
[1754491936131,0.85125538,114230.0,114220.0,0.8293378]
[1754491936329,1.46169538,114230.0,114220.0,0.2188578]
[1754491936531,1.46169538,114230.0,114220.0,0.1750863]
[1754491936831,0.5421196,114220.0,114210.0,1.0528617]
[1754491937026,0.85127078,114220.0,114210.0,1.1233217]
[1754491937628,0.85127078,114220.0,114210.0,1.1694617]
[1754491937823,0.1750996,114220.0,114210.0,0.6286517]
[1754491938025,0.1750996,114220.0,114210.0,1.2390917]
[1754491938734,0.1750996,114220.0,114210.0,1.2410917]
[1754491939233,0.98259058,114230.0,114220.0,0.5410895]
[1754491943333,0.98259058,114230.0,114220.0,0.31985]
[1754491943526,0.98259058,114230.0,114220.0,0.17976]
[1754491943722,0.98259058,114230.0,114220.0,0.10097]
[1754491944535,0.98259058,114230.0,114220.0,0.2760696]
[1754491944736,0.98259058,114230.0,114220.0,0.17143]
[1754491944936,0.98259058,114230.0,114220.0,0.3465296]
[1754491945439,0.98259058,114230.0,114220.0,0.17143]
[1754491946640,0.3205994,114220.0,114210.0,1.39915609]
[1754491946826,0.85127058,114220.0,114210.0,1.30925059]
[1754491947639,0.85127058,114220.0,114210.0,1.1514248]
[1754491948137,0.85127058,114220.0,114210.0,1.1052848]
[1754491948532,0.5421194,114220.0,114210.0,1.1052848]
[1754491948732,0.85127058,114220.0,114210.0,1.1524248]
[1754491948934,0.85127058,114220.0,114210.0,1.1534248]
[1754491950137,0.5421194,114220.0,114210.0,1.1534248]
[1754491952541,0.5421194,114220.0,114210.0,1.35739059]
[1754491952731,0.85127058,114220.0,114210.0,1.35739059]
[1754491953243,0.5421194,114220.0,114210.0,1.31125059]
[1754491953541,0.85127058,114220.0,114210.0,1.31125059]
[1754491953742,0.77896058,114220.0,114210.0,1.31125059]
[1754491953944,0.52982058,114220.0,114210.0,1.35925059]
[1754491954143,0.14578,114220.0,114210.0,1.35925059]
[1754491954948,0.3208795,114220.0,114210.0,1.35925059]
[1754491955136,0.5361395,114220.0,114210.0,1.35925059]
[1754491955638,0.36104,114220.0,114210.0,1.35925059]
[1754491956139,0.5361395,114220.0,114210.0,1.35925059]
[1754491957032,0.84529068,114220.0,114210.0,1.35925059]
[1754491957244,0.84529068,114220.0,114210.0,1.1552848]
[1754491959241,0.5361395,114220.0,114210.0,1.1552848]
[1754491959447,0.84529068,114220.0,114210.0,1.1552848]
[1754491961042,0.84529068,114220.0,114210.0,1.35925059]
[1754491961443,0.67019118,114220.0,114210.0,1.35925059]
[1754491962742,0.50036118,114220.0,114210.0,1.35925059]
[1754491962948,0.19121,114220.0,114210.0,1.35925059]
[1754491963146,0.4671527,114240.0,114230.0,0.3775441]
[1754491963352,0.84526388,114240.0,114230.0,1.1497441]
[1754491963848,0.84526008,114240.0,114230.0,1.1497441]
[1754491964351,0.36104,114240.0,114230.0,1.1497441]
[1754491964947,0.4684888,114240.0,114230.0,1.1497441]
[1754491965149,0.84725998,114240.0,114230.0,1.1497441]
[1754491966049,0.84825998,114240.0,114230.0,1.1497441]
[1754491966343,0.5391088,114240.0,114230.0,1.1497441]
[1754491966548,0.84825998,114240.0,114230.0,1.1497441]
[1754491968151,0.67908998,114240.0,114230.0,0.9819941]
[1754491968345,0.84825998,114240.0,114230.0,1.1497441]
[1754491968747,0.36404,114240.0,114230.0,1.1497441]
[1754491968951,0.21774,114240.0,114230.0,1.1497441]
[1754491969165,0.17217,114240.0,114230.0,1.63397527]
[1754491969345,0.2446085,114300.0,114270.0,0.1137022]
[1754491969555,0.26083,114300.0,114290.0,0.1749915]
[1754491969742,0.19121,114300.0,114290.0,0.68097268]
[1754491969948,0.06896,114300.0,114290.0,0.68097268]
[1754491970652,0.11953,114300.0,114290.0,0.3718215]
[1754491971248,0.12553,114300.0,114290.0,0.3718215]
[1754491971753,0.05057,114300.0,114290.0,0.3718215]
[1754491971953,0.05057,114300.0,114290.0,0.5437315]
[1754491972157,0.005,114300.0,114290.0,0.5437315]
[1754491972451,0.10021,114310.0,114300.0,0.2538561]
[1754491972654,0.10021,114310.0,114300.0,0.74220659]
[1754491973250,0.10021,114310.0,114300.0,0.91411659]
[1754491973456,0.10021,114310.0,114300.0,0.55237927]
[1754491973652,0.29142,114310.0,114300.0,1.11417927]
[1754491973858,0.5360008,114310.0,114300.0,1.16213927]
[1754491974156,0.5380008,114310.0,114300.0,1.16213927]
[1754491974558,0.5400008,114310.0,114300.0,1.16213927]
[1754491974857,0.5400008,114310.0,114300.0,1.16205927]
[1754491978456,0.36504,114310.0,114300.0,1.16205927]
[1754491978658,0.004,114310.0,114300.0,1.16205927]
[1754491978857,0.004,114310.0,114300.0,1.52379659]
[1754491979253,0.004,114310.0,114300.0,1.62379659]
[1754491979960,0.1749333,114330.0,114320.0,0.1749455]
[1754491980263,0.04547,114330.0,114320.0,1.1504355]
[1754491980457,0.2906808,114330.0,114320.0,1.1504355]
[1754491980657,0.4709508,114330.0,114320.0,1.1504355]
[1754491980853,0.12385,114330.0,114320.0,1.1504355]
[1754491981064,0.04547,114330.0,114320.0,1.1504355]
[1754491981361,0.05447,114330.0,114320.0,1.1504355]
[1754491982161,0.4799537,114330.0,114320.0,1.1504355]
[1754491982561,0.4799537,114330.0,114320.0,1.1503555]
[1754491982859,0.5493837,114330.0,114320.0,1.1503555]
[1754491983264,0.5453837,114330.0,114320.0,1.1513555]
[1754491983464,0.5453837,114330.0,114320.0,0.5418779]
[1754491983665,0.5453837,114330.0,114320.0,1.1032779]
[1754491983865,0.5403837,114330.0,114320.0,1.1072779]
[1754491984066,0.5403837,114330.0,114320.0,1.1542779]
[1754491984467,0.5403837,114330.0,114320.0,1.1512779]
[1754491985059,0.5403837,114330.0,114320.0,0.4938779]
[1754491985260,0.90212102,114330.0,114320.0,0.9545283]
[1754491986162,0.5403837,114330.0,114320.0,0.9545283]
[1754491986361,0.90212102,114330.0,114320.0,0.61032]
[1754491986560,1.20212102,114330.0,114320.0,0.001]
[1754491986763,1.37705702,114330.0,114320.0,0.001]
[1754491987963,0.5403837,114330.0,114320.0,0.541878]
[1754491988163,0.5433837,114330.0,114320.0,0.540878]
[1754491988563,0.3017837,114330.0,114320.0,1.150198]
[1754491988770,0.3017827,114330.0,114320.0,1.150198]
[1754491989162,0.12685,114330.0,114320.0,1.150198]
[1754491989469,0.3017827,114330.0,114320.0,1.150198]
[1754491989870,0.12685,114330.0,114320.0,1.150198]
[1754491990069,0.3017826,114330.0,114320.0,1.150198]
[1754491990568,0.4709526,114330.0,114320.0,1.150198]
[1754491990758,0.5403826,114330.0,114320.0,1.150198]
[1754491991668,0.5413826,114330.0,114320.0,1.150198]
[1754491992270,0.5403826,114330.0,114320.0,1.150198]
[1754491992869,0.2987826,114330.0,114320.0,1.150198]
[1754491993164,0.12385,114330.0,114320.0,1.458783]
[1754491993471,0.3848228,114340.0,114330.0,0.5408627]
[1754491993971,0.6715728,114340.0,114330.0,0.36593]
[1754491994179,0.9801578,114340.0,114330.0,0.36593]
[1754491994670,0.6725728,114340.0,114330.0,0.5408627]
[1754491994865,0.9811578,114340.0,114330.0,0.36593]
[1754491995071,0.9821578,114340.0,114330.0,0.31793]
[1754491996577,0.9821578,114340.0,114330.0,0.4204326]
[1754491997078,0.9821578,114340.0,114330.0,0.4928626]
[1754491999276,0.4384927,114330.0,114320.0,1.1896559]
[1754491999481,0.5403827,114330.0,114320.0,1.1896559]
[1754491999778,0.5403827,114330.0,114320.0,1.2376559]
[1754492001678,0.2987827,114330.0,114320.0,1.2376559]
[1754492002772,0.1749327,114330.0,114320.0,1.5462409]
[1754492003175,0.1749327,114330.0,114320.0,1.2376559]
[1754492003578,0.2204027,114330.0,114320.0,1.2376559]
[1754492005279,0.5403827,114330.0,114320.0,1.1499459]
[1754492005679,0.8489677,114330.0,114320.0,1.1499459]
[1754492005875,0.5403827,114330.0,114320.0,1.1499459]
[1754492009079,0.8489677,114330.0,114320.0,1.1019179]
[1754492009683,0.8489677,114330.0,114320.0,1.1499179]
[1754492010287,0.5403827,114330.0,114320.0,1.1499179]
[1754492012290,0.2987827,114330.0,114320.0,1.1499179]
[1754492012585,0.2204027,114330.0,114320.0,1.4585029]
[1754492013489,0.2963827,114330.0,114320.0,1.1499179]
[1754492013888,0.2204027,114330.0,114320.0,1.1499179]
[1754492014490,0.5997722,114340.0,114330.0,0.5404127]
[1754492015390,0.6639722,114340.0,114330.0,0.5404127]
[1754492015891,0.6649722,114340.0,114330.0,0.5404127]
[1754492016093,0.6659722,114340.0,114330.0,0.5404127]
[1754492017296,0.17693,114340.0,114330.0,0.5404127]
[1754492017495,0.05115,114340.0,114330.0,0.8489977]
[1754492017696,0.2260674,114340.0,114330.0,0.8489977]
[1754492018195,0.05115,114340.0,114330.0,0.8489977]
[1754492018390,0.2260674,114340.0,114330.0,0.8489977]
[1754492018599,0.8433524,114340.0,114330.0,0.4933327]
[1754492018797,0.8433524,114340.0,114330.0,1.1022527]
[1754492019292,0.8433524,114340.0,114330.0,0.92732]
[1754492019493,0.8433524,114340.0,114330.0,0.21865]
[1754492019690,0.5327979,114320.0,114310.0,0.5370907]
[1754492019995,0.5328132,114310.0,114300.0,0.14394]
[1754492020190,0.8413982,114310.0,114300.0,0.8484587]
[1754492020699,0.8413982,114310.0,114300.0,0.9537087]
[1754492020897,0.2231132,114310.0,114300.0,1.41964418]
[1754492021104,0.2241134,114310.0,114300.0,1.46672418]
[1754492021288,0.3000934,114310.0,114300.0,1.46672418]
[1754492021593,0.8413984,114310.0,114300.0,1.04184918]
[1754492021798,0.5328134,114310.0,114300.0,1.11105918]
[1754492022199,0.5318134,114310.0,114300.0,1.11105918]
[1754492022501,0.5318134,114310.0,114300.0,1.15813918]
[1754492022799,0.5318134,114310.0,114300.0,1.16113918]
[1754492023000,0.5318134,114310.0,114300.0,1.16213918]
[1754492023397,0.5318134,114310.0,114300.0,1.16013918]
[1754492024096,0.5318134,114310.0,114300.0,1.15913918]
[1754492024409,0.5318134,114310.0,114300.0,1.11205918]
[1754492024607,0.5318134,114310.0,114300.0,1.15913918]
[1754492024900,0.5318134,114310.0,114300.0,1.11205918]
[1754492025308,0.8403984,114310.0,114300.0,1.11205918]
[1754492025493,0.8403984,114310.0,114300.0,0.2405787]